fUST/lending_fUST_20241106
["ID","MTS","AMOUNT","RATE_DAILY","PERIOD"]
[341455995,1730903442193,-500.0,0.00028491,2]
[341455996,1730903442203,-500.0,0.00028493,2]
[341455997,1730903442216,-1370.2,0.00028493,2]
[341455998,1730903442227,-1120.05,0.00028493,2]
[341455999,1730903442236,-1000.0,0.00028742,2]
[341456000,1730903442246,-1000.0,0.00028742,5]
[341456001,1730903442255,-500.0,0.00028765,2]
[341456002,1730903442265,-500.0,0.00028767,2]
[341456003,1730903442275,-1370.2,0.00028767,2]
[341456004,1730903442290,-1120.05,0.00028767,2]
[341456005,1730903442301,-879.1957722,0.00028841,5]
[341456006,1730903442313,-500.0,0.00029039,2]
[341456007,1730903442323,-500.0,0.00029041,2]
[341456008,1730903442334,-1370.2,0.00029041,2]
[341456009,1730903442344,-1120.05,0.00029041,2]
[341456010,1730903442355,-1000.0,0.00029042,5]
[341456011,1730903442366,-500.0,0.00029311,2]
[341456012,1730903442376,-500.0,0.00029312,2]
[341456013,1730903442387,-500.0,0.00029312,2]
[341456014,1730903442397,-500.0,0.00029313,2]
[341456015,1730903442406,-151.0,0.00029315,7]
[341456016,1730903442416,-151.0,0.00029315,7]
[341456017,1730903442426,-151.0,0.00029315,7]
[341456018,1730903442436,-151.0,0.00029315,7]
[341456019,1730903442447,-255.026454,0.00029315,7]
[341456020,1730903442457,-500.0,0.00029315,2]
[341456021,1730903442467,-1370.2,0.00029315,2]
[341456022,1730903442477,-1120.05,0.00029315,2]
[341456023,1730903442486,-3498.52749482,0.00029385,2]
[341456024,1730903442495,-1137.0,0.00029433,2]
[341456025,1730903442505,-529.0,0.00029433,2]
[341456026,1730903442514,-2393.0,0.00029433,2]
[341456027,1730903442524,-500.0,0.00029587,2]
[341456028,1730903442534,-500.0,0.00029589,2]
[341456029,1730903442544,-1370.2,0.00029589,2]
[341456030,1730903442554,-1120.05,0.00029589,2]
[341456031,1730903442566,-500.0,0.00029861,2]
[341456032,1730903442576,-500.0,0.00029863,2]
[341456033,1730903442585,-1370.2,0.00029863,2]
[341456034,1730903442595,-1120.05,0.00029863,2]
[341456035,1730903442606,-225.0,0.0003,2]
[341456036,1730903442615,-261.059,0.0003,2]
[341456037,1730903442625,-261.059,0.0003,2]
[341456038,1730903442636,-2100.77746048,0.0003,2]
[341456039,1730903442646,-500.0,0.00030135,2]
[341456040,1730903442656,-151.0,0.00030136,7]
[341456041,1730903442666,-500.0,0.00030136,2]
[341456042,1730903442676,-1370.2,0.00030136,2]
[341456043,1730903442687,-1120.05,0.00030136,2]
[341456044,1730903442699,-500.0,0.00030137,2]
[341456045,1730903442709,-640.85156389,0.00030137,2]
[341456046,1730903442719,-500.0,0.000302,5]
[341456047,1730903442729,-437.785871,0.00030409,2]
[341456048,1730903442739,-500.0,0.0003041,2]
[341456049,1730903442749,-1370.2,0.0003041,2]
[341456050,1730903442758,-1120.05,0.0003041,2]
[341456051,1730903442768,-151.0,0.0003041,7]
[341456052,1730903442777,-151.0,0.0003041,7]
[341456053,1730903442787,-151.0,0.0003041,7]
[341456054,1730903442796,-151.0,0.0003041,7]
[341456055,1730903442805,-151.0,0.0003041,7]
[341456056,1730903442818,-151.0,0.0003041,7]
[341456057,1730903442827,-151.0,0.0003041,7]
[341456058,1730903442837,-225.0,0.00030411,2]
[341456059,1730903442846,-151.0,0.00030603,3]
[341456060,1730903442856,-154.658246,0.00030603,7]
[341456061,1730903442865,-500.0,0.00030684,2]
[341456062,1730903442874,-1370.2,0.00030684,2]
[341456063,1730903442884,-1120.05,0.00030684,2]
[341456064,1730903442893,-823.0,0.00030768,2]
[341456065,1730903442902,-500.0,0.00030958,2]
[341456066,1730903442912,-1370.2,0.00030958,2]
[341456067,1730903442922,-1120.05,0.00030958,2]
[341456068,1730903442931,-400.0,0.00031,30]
[341456070,1730903442942,-500.0,0.00031131,2]
[341456072,1730903442952,-500.0,0.00031131,2]
[341456074,1730903442961,-151.0,0.00031231,7]
[341456075,1730903442971,-151.0,0.00031231,7]
[341456077,1730903442980,-151.0,0.00031231,7]
[341456078,1730903442991,-151.0,0.00031231,7]
[341456079,1730903443001,-500.0,0.00031232,2]
[341456081,1730903443010,-151.0,0.00031232,7]
[341456083,1730903443020,-1370.2,0.00031232,2]
[341456084,1730903443029,-1120.05,0.00031232,2]
[341456085,1730903443039,-1500.0,0.00031247,2]
[341456086,1730903443049,-1500.0,0.00031247,5]
[341456087,1730903443063,-538.36843076,0.00031381,2]
[341456088,1730903443073,-277.86524327,0.00031381,2]
[341456089,1730903443082,-151.0,0.00031382,7]
[341456090,1730903443091,-264.445248,0.00031382,7]
[341456092,1730903443100,-151.0,0.00031382,7]
[341456093,1730903443109,-151.0,0.00031382,7]
[341456094,1730903443119,-151.0,0.00031382,7]
[341456095,1730903443128,-151.0,0.00031382,7]
[341456096,1730903443138,-625.16287881,0.00031382,2]
[341456097,1730903443149,-500.0,0.00031397,120]
[341456098,1730903443158,-500.0,0.00031397,120]
[341456099,1730903443168,-500.0,0.00031397,120]
[341456100,1730903443178,-500.0,0.00031397,120]
[341456101,1730903443188,-150.112233,0.000314,10]
[341456102,1730903443199,-500.0,0.00031473,5]
[341456103,1730903443211,-9000.0,0.00031479,2]
[341456104,1730903443221,-151.0,0.00031479,7]
[341456105,1730903443232,-151.0,0.00031479,7]
[341456106,1730903443243,-151.0,0.00031479,7]
[341456107,1730903443253,-4851.67364483,0.0003148,2]
[341456108,1730903443263,-284.79913423,0.00031481,2]
[341456109,1730903443272,-1439.0437011,0.00031481,2]
[341456110,1730903443282,-260902.79083227,0.00031482,2]
[341456112,1730903443347,-423.80048986,0.00031482,2]
[341456113,1730903443358,-151.0,0.00031482,7]
[341456114,1730903443368,-44.89845892,0.00031482,7]
[341456115,1730903443380,-106.10154108,0.00031482,7]
[341456116,1730903443390,-151.0,0.00031482,7]
[341456117,1730903443400,-151.0,0.00031482,7]
[341456118,1730903443410,-151.0,0.00031482,7]
[341456119,1730903443422,-55.66295929,0.00031482,7]
[341456120,1730903443436,-95.33704071,0.00031482,7]
[341456122,1730903443447,-151.0,0.00031482,7]
[341456124,1730903443457,-151.0,0.00031482,7]
[341456126,1730903443467,-151.0,0.00031482,7]
[341456127,1730903443478,-151.0,0.00031482,7]
[341456128,1730903443487,-151.0,0.00031482,7]
[341456129,1730903443497,-151.0,0.00031482,7]
[341456130,1730903443507,-151.0,0.00031482,7]
[341456131,1730903443516,-151.0,0.00031482,7]
[341456132,1730903443527,-273.85260072,0.00031482,2]
[341456133,1730903443537,-150.112233,0.000315,12]
[341456134,1730903443547,-150.112233,0.000315,18]
[341456135,1730903443562,-500.0,0.00031506,2]
[341456136,1730903443572,-1370.2,0.00031506,2]
[341456137,1730903443584,-1120.05,0.00031506,2]
[341456138,1730903443594,-1000.0,0.00031506,30]
[341456139,1730903443603,-1000.0,0.00031506,30]
[341456140,1730903443613,-1000.0,0.00031506,30]
[341456141,1730903443623,-1000.0,0.00031506,30]
[341456142,1730903443632,-945.44516359,0.00031506,30]
[341456143,1730903443642,-1500.0,0.00031547,5]
[341456144,1730903443652,-1000.0,0.0003157,5]
[341456145,1730903443663,-150.112233,0.000316,11]
[341456146,1730903443673,-150.112233,0.000316,11]
[341456147,1730903443683,-1407.78707952,0.00031629,3]
[341456148,1730903443695,-8592.21292048,0.00031629,3]
[341456149,1730903443704,-225.0,0.00031644,2]
[341456150,1730903443713,-772.57671932,0.000317,2]
[341456151,1730903443727,-14499.45120984,0.000317,2]
[341456152,1730903443739,-7011.39655109,0.000317,2]
[341456153,1730903443768,-509.80741867,0.00027397,2]
[341456154,1730903443778,-151.0,0.00027943,7]
[341456155,1730903443788,-30711.37291589,0.000317,2]
[341456156,1730903443800,-35367.08075649,0.000317,2]
[341456157,1730903443812,-500.0,0.000317,2]
[341456158,1730903443822,-150.112233,0.000317,10]
[341456159,1730903443832,-150.112233,0.000317,19]
[341456160,1730903443841,-151.0,0.000317,7]
[341456161,1730903443850,-3000.0,0.000317,9]
[341456162,1730903443860,-239.498247,0.000317,7]
[341456163,1730903443870,-151.0,0.000317,7]
[341456164,1730903443880,-151.0,0.000317,7]
[341456165,1730903443890,-151.0,0.000317,7]
[341456166,1730903443900,-151.0,0.000317,7]
[341456167,1730903443909,-151.0,0.000317,7]
[341456168,1730903443921,-151.0,0.000317,7]
[341456169,1730903443930,-151.0,0.000317,7]
[341456170,1730903443940,-151.0,0.000317,7]
[341456171,1730903443950,-151.0,0.000317,7]
[341456172,1730903443960,-151.0,0.000317,7]
[341456173,1730903443969,-3000.0,0.0003171,9]
[341456174,1730903443980,-3000.0,0.0003172,9]
[341456175,1730903443990,-3000.0,0.0003173,9]
[341456176,1730903443999,-3000.0,0.0003174,9]
[341456177,1730903444009,-3000.0,0.0003175,9]
[341456178,1730903444018,-3000.0,0.0003176,9]
[341456179,1730903444028,-3000.0,0.0003177,9]
[341456180,1730903444038,-3000.0,0.0003178,9]
[341456181,1730903444048,-500.0,0.0003178,2]
[341456182,1730903444059,-1370.2,0.0003178,2]
[341456183,1730903444068,-1120.05,0.0003178,2]
[341456184,1730903444078,-3000.0,0.0003179,9]
[341456185,1730903444087,-234.72,0.000318,14]
[341456186,1730903444097,-1924.97,0.000318,14]
[341456187,1730903444107,-266.65,0.000318,14]
[341456188,1730903444116,-1103.92,0.000318,30]
[341456189,1730903444126,-1055.67,0.000318,30]
[341456190,1730903444135,-2249.56,0.000318,2]
[341456191,1730903444145,-150.112233,0.000318,11]
[341456192,1730903444155,-3000.0,0.000318,9]
[341456193,1730903444164,-267.442301,0.000318,2]
[341456194,1730903444174,-151.0,0.000318,7]
[341456195,1730903444185,-151.0,0.000318,7]
[341456196,1730903444194,-151.0,0.000318,7]
[341456197,1730903444205,-261.0609,0.000318,7]
[341456198,1730903444217,-151.0,0.000318,7]
[341456199,1730903444227,-151.0,0.000318,7]
[341456200,1730903444237,-2845.31097983,0.000318,2]
[341456201,1730903444377,-151.0,0.00029315,7]
[341456202,1730903444387,-151.0,0.00031481,7]
[341456203,1730903444397,-151.0,0.00031482,7]
[341456204,1730903444408,-3098.41002328,0.000318,2]
[341456210,1730903446247,-500.0,0.00027669,2]
[341456211,1730903446258,-150.0,0.00029241,2]
[341456212,1730903446269,-151.0,0.000317,7]
[341456213,1730903446279,-39784.34205195,0.000318,2]
[341456214,1730903446291,-731.45157903,0.000318,2]
[341456215,1730903446351,-226771.64291642,0.000318,2]
[341456217,1730903446362,-458137.24641549,0.000318,2]
[341456219,1730903446372,-151.0,0.000318,7]
[341456220,1730903446382,-151.000001,0.000318,7]
[341456221,1730903446392,-151.0,0.000318,7]
[341456222,1730903446402,-151.0,0.000318,7]
[341456223,1730903446412,-151.0,0.000318,7]
[341456224,1730903446421,-3000.0,0.0003181,9]
[341456225,1730903446431,-3000.0,0.0003182,9]
[341456226,1730903446441,-3000.0,0.0003183,9]
[341456227,1730903446451,-3000.0,0.0003184,9]
[341456228,1730903446461,-3000.0,0.0003185,9]
[341456229,1730903446470,-3000.0,0.0003186,9]
[341456230,1730903446480,-3000.0,0.0003187,9]
[341456231,1730903446490,-3000.0,0.0003188,9]
[341456232,1730903446499,-3498.52749482,0.00031888,2]
[341456233,1730903446510,-3000.0,0.0003189,9]
[341456234,1730903446520,-3000.0,0.000319,9]
[341456235,1730903446530,-151.0,0.000319,7]
[341456236,1730903446542,-151.0,0.000319,7]
[341456237,1730903446552,-151.0,0.000319,7]
[341456238,1730903446564,-151.0,0.000319,7]
[341456239,1730903446574,-519274.11556281,0.000319,2]
[341456241,1730903510967,159.624531,0.00013973,2]
[341456246,1730903571047,1169.27083333,0.00021483,2]
[341456247,1730903633313,1169.27083333,0.0002082,2]
[341456256,1730904123831,6285.12324807,0.0001,2]
[341456257,1730904123872,90325.36637768,0.0001,2]
[341456258,1730904242246,159.489464,0.00013973,2]
[341456260,1730904246369,1169.27083333,0.0002082,2]
[341456264,1730904403068,10000.0,0.0002,10]
[341456378,1730904638892,-628.0,0.00021801,2]
[341456379,1730904638902,-170.905663,0.00022433,2]
[341456380,1730904638912,-1169.27083333,0.00022944,2]
[341456381,1730904638922,-222.369877,0.00023183,2]
[341456382,1730904638931,-3798.5596564,0.00023279,2]
[341456383,1730904638943,-255.9584487,0.00023475,2]
[341456384,1730904638952,-211.075874,0.00023547,2]
[341456385,1730904638962,-170.905663,0.00023962,2]
[341456387,1730904638972,-300.0,0.00024154,2]
[341456388,1730904638981,-300.0,0.00024154,2]
[341456390,1730904638990,-500.0,0.00024155,2]
[341456391,1730904638999,-500.0,0.00024155,2]
[341456394,1730904639009,-505.44033381,0.00024155,2]
[341456395,1730904639019,-17785.83124152,0.00024156,2]
[341456408,1730904640559,-7114.16875848,0.00024156,2]
[341456409,1730904640569,-2374.30081596,0.00024185,2]
[341456410,1730904640579,-250.0,0.00024285,2]
[341456411,1730904640588,-417.355704,0.00024396,2]
[341456412,1730904640601,-500.0,0.00024658,2]
[341456413,1730904640610,-205.6749548,0.00024658,2]
[341456414,1730904640619,-500.0,0.00024658,2]
[341456415,1730904640629,-500.0,0.00024658,2]
[341456416,1730904640638,-500.0,0.00024658,2]
[341456417,1730904640648,-500.0,0.00024658,2]
[341456418,1730904640784,-500.0,0.00024658,2]
[341456419,1730904640793,-4250.45686287,0.00024764,2]
[341456420,1730904640803,-565.53921923,0.00024764,2]
[341456421,1730904640812,-417.355704,0.00025081,2]
[341456422,1730904640821,-170.905663,0.00025491,2]
[341456423,1730904640831,-417.355704,0.00025766,2]
[341456424,1730904640840,-420.0,0.00026189,2]
[341456425,1730904640849,-226.34855684,0.000264,2]
[341456426,1730904640858,-226.34855683,0.000264,2]
[341456427,1730904640867,-226.34855683,0.000264,2]
[341456428,1730904640876,-2374.30081589,0.00026716,2]
[341456429,1730904640886,-22125.63037774,0.00026988,2]
[341456430,1730904640895,-813.42210795,0.00027297,2]
[341456431,1730904640905,-158.995872,0.00027298,2]
[341456432,1730904640915,-308.2061023,0.00027372,2]
[341456433,1730904640924,-500.0,0.00027373,2]
[341456434,1730904640933,-527.6537175,0.00027373,2]
[341456435,1730904640950,-500.0,0.00027373,2]
[341456436,1730904640960,-509.31595472,0.00027373,2]
[341456437,1730904640970,-500.0,0.00027373,2]
[341456438,1730904640979,-500.0,0.00027373,2]
[341456439,1730904640989,-204.85316858,0.00027373,2]
[341456440,1730904640998,-500.0,0.00027373,2]
[341456441,1730904641007,-500.0,0.00027373,2]
[341456442,1730904641016,-500.0,0.00027373,2]
[341456443,1730904641025,-500.0,0.00027373,2]
[341456444,1730904641035,-500.0,0.00027373,2]
[341456445,1730904641044,-500.0,0.00027373,2]
[341456446,1730904641054,-500.0,0.00027373,2]
[341456447,1730904641063,-872.26339868,0.00027396,2]
[341456448,1730904641073,-510.55404762,0.00027397,2]
[341456449,1730904641082,-504.27267186,0.00027397,2]
[341456450,1730904641092,-500.0,0.00027397,2]
[341456451,1730904641102,-500.0,0.00027397,2]
[341456452,1730904641111,-500.0,0.00027397,2]
[341456453,1730904641121,-502.59709737,0.00027397,2]
[341456454,1730904641131,-500.0,0.00027397,2]
[341456455,1730904641141,-356.15305619,0.00027397,2]
[341456456,1730904641151,-500.0,0.00027397,2]
[341456457,1730904641160,-500.0,0.00027397,2]
[341456458,1730904641170,-504.3033917,0.00027397,2]
[341456459,1730904641179,-438.36672872,0.00027397,2]
[341456460,1730904641197,-500.0,0.00027397,2]
[341456461,1730904641206,-500.0,0.00027397,2]
[341456462,1730904641215,-519.13762914,0.00027397,2]
[341456463,1730904641225,-500.0,0.00027397,2]
[341456464,1730904641234,-500.0,0.00027397,2]
[341456465,1730904641244,-500.0,0.00027397,2]
[341456466,1730904641253,-500.0,0.00027397,2]
[341456467,1730904641262,-500.0,0.00027397,2]
[341456468,1730904641272,-500.0,0.00027397,2]
[341456469,1730904641282,-506.20537914,0.00027397,2]
[341456470,1730904641292,-500.0,0.00027397,2]
[341456471,1730904641302,-500.0,0.00027397,2]
[341456472,1730904641312,-500.0,0.00027397,2]
[341456473,1730904641321,-500.0,0.00027397,2]
[341456474,1730904641330,-500.0,0.00027397,2]
[341456475,1730904641340,-500.0,0.00027397,2]
[341456476,1730904641349,-500.0,0.00027397,2]
[341456477,1730904641359,-500.0,0.00027397,2]
[341456478,1730904641369,-500.0,0.00027397,2]
[341456479,1730904641378,-500.0,0.00027397,2]
[341456480,1730904641387,-500.0,0.00027397,2]
[341456481,1730904641398,-316.57407495,0.00027397,2]
[341456482,1730904641407,-500.0,0.00027397,2]
[341456483,1730904641416,-500.0,0.00027397,2]
[341456484,1730904641426,-500.0,0.00027397,2]
[341456485,1730904641439,-595.6971547,0.00027397,2]
[341456486,1730904641452,-500.0,0.00027397,2]
[341456487,1730904641461,-521.49300076,0.00027397,2]
[341456488,1730904641471,-500.0,0.00027397,2]
[341456489,1730904641480,-500.86400293,0.00027397,2]
[341456490,1730904641490,-500.0,0.00027397,2]
[341456491,1730904641499,-500.0,0.00027397,2]
[341456492,1730904641509,-500.0,0.00027397,2]
[341456493,1730904641519,-500.0,0.00027397,2]
[341456494,1730904641528,-500.0,0.00027397,2]
[341456495,1730904641538,-500.0,0.00027397,2]
[341456496,1730904641547,-504.71395374,0.00027397,2]
[341456497,1730904641557,-500.0,0.00027397,2]
[341456498,1730904641566,-500.0,0.00027397,2]
[341456499,1730904641576,-500.0,0.00027397,2]
[341456500,1730904641586,-500.0,0.00027397,2]
[341456501,1730904641597,-500.0,0.00027397,2]
[341456502,1730904641607,-500.0,0.00027397,2]
[341456503,1730904641616,-500.0,0.00027397,2]
[341456504,1730904641626,-207.7942714,0.00027397,2]
[341456505,1730904641635,-500.0,0.00027397,2]
[341456506,1730904641646,-500.0,0.00027397,2]
[341456507,1730904641656,-500.0,0.00027397,2]
[341456508,1730904641665,-500.0,0.00027397,2]
[341456509,1730904641675,-250.0,0.00027397,2]
[341456510,1730904641685,-500.0,0.00027397,2]
[341456511,1730904641700,-506.84153475,0.00027397,2]
[341456512,1730904641709,-502.47645029,0.00027397,2]
[341456513,1730904641719,-500.0,0.00027397,2]
[341456514,1730904641728,-500.0,0.00027397,2]
[341456515,1730904641738,-500.0,0.00027397,2]
[341456516,1730904641747,-500.0,0.00027397,2]
[341456517,1730904641757,-502.04608358,0.00027397,2]
[341456518,1730904641766,-500.0,0.00027397,2]
[341456519,1730904641775,-500.0,0.00027397,2]
[341456520,1730904641784,-500.0,0.00027397,2]
[341456521,1730904641794,-504.07339655,0.00027397,2]
[341456522,1730904641803,-500.0,0.00027397,2]
[341456523,1730904641813,-505.01705267,0.00027397,2]
[341456524,1730904641822,-500.0,0.00027397,2]
[341456525,1730904641832,-500.0,0.00027397,2]
[341456526,1730904641841,-500.88436348,0.00027397,2]
[341456527,1730904641852,-500.0,0.00027397,2]
[341456528,1730904641861,-500.0,0.00027397,2]
[341456529,1730904641871,-500.0,0.00027397,2]
[341456530,1730904641882,-500.0,0.00027397,2]
[341456531,1730904641893,-500.0,0.00027397,2]
[341456532,1730904641903,-500.0,0.00027397,2]
[341456533,1730904641913,-514.88249319,0.00027397,2]
[341456534,1730904641922,-500.0,0.00027397,2]
[341456535,1730904641931,-500.0,0.00027397,2]
[341456536,1730904641944,-500.0,0.00027397,2]
[341456537,1730904641954,-500.0,0.00027397,2]
[341456538,1730904641963,-500.0,0.00027397,2]
[341456539,1730904641973,-500.0,0.00027397,2]
[341456540,1730904641982,-500.0,0.00027397,2]
[341456541,1730904641991,-215.49538655,0.00027397,2]
[341456542,1730904642001,-500.0,0.00027397,2]
[341456543,1730904642010,-199.08413577,0.00027397,2]
[341456544,1730904642020,-500.0,0.00027397,2]
[341456545,1730904642029,-501.73280581,0.00027397,2]
[341456546,1730904642038,-500.0,0.00027397,2]
[341456547,1730904642048,-500.0,0.00027397,2]
[341456548,1730904642058,-500.0,0.00027397,2]
[341456549,1730904642067,-500.0,0.00027397,2]
[341456550,1730904642076,-500.0,0.00027397,2]
[341456551,1730904642088,-500.0,0.00027397,2]
[341456552,1730904642098,-500.0,0.00027397,2]
[341456553,1730904642110,-500.0,0.00027397,2]
[341456554,1730904642121,-500.0,0.00027397,2]
[341456555,1730904642130,-500.0,0.00027397,2]
[341456556,1730904642140,-503.29809942,0.00027397,2]
[341456557,1730904642150,-502.41123473,0.00027397,2]
[341456558,1730904642160,-500.0,0.00027397,2]
[341456559,1730904642169,-500.0,0.00027397,2]
[341456560,1730904642178,-490.0,0.00027397,2]
[341456561,1730904642190,-181.25394416,0.00027397,2]
[341456562,1730904642199,-500.0,0.00027397,2]
[341456563,1730904642208,-500.0,0.00027397,2]
[341456564,1730904642217,-500.0,0.00027397,2]
[341456565,1730904642226,-500.0,0.00027397,2]
[341456566,1730904642235,-500.0,0.00027397,2]
[341456567,1730904642244,-500.0,0.00027397,2]
[341456568,1730904642253,-500.0,0.00027397,2]
[341456569,1730904642262,-507.70238262,0.00027397,2]
[341456570,1730904642271,-500.0,0.00027397,2]
[341456571,1730904642281,-503.24937743,0.00027397,2]
[341456572,1730904642290,-500.0,0.00027397,2]
[341456573,1730904642299,-500.0,0.00027397,2]
[341456574,1730904642308,-500.0,0.00027397,2]
[341456575,1730904642318,-500.0,0.00027397,2]
[341456576,1730904642328,-500.0,0.00027397,2]
[341456577,1730904642337,-500.0,0.00027397,2]
[341456578,1730904642346,-500.0,0.00027397,2]
[341456579,1730904642355,-500.0,0.00027397,2]
[341456580,1730904642365,-500.0,0.00027397,2]
[341456581,1730904642374,-504.68484592,0.00027397,2]
[341456582,1730904642384,-502.9430145,0.00027397,2]
[341456583,1730904642393,-500.0,0.00027397,2]
[341456584,1730904642402,-500.0,0.00027397,2]
[341456585,1730904642411,-500.0,0.00027397,2]
[341456586,1730904642420,-500.0,0.00027397,2]
[341456587,1730904642429,-427.45792355,0.00027397,2]
[341456588,1730904642443,-500.0,0.00027397,2]
[341456589,1730904642455,-500.0,0.00027397,2]
[341456590,1730904642467,-500.0,0.00027397,2]
[341456591,1730904642477,-500.0,0.00027397,2]
[341456592,1730904642487,-416.85288346,0.00027397,2]
[341456593,1730904642496,-500.0,0.00027397,2]
[341456594,1730904642506,-500.0,0.00027397,2]
[341456595,1730904642515,-500.0,0.00027397,2]
[341456596,1730904642525,-500.0,0.00027397,2]
[341456597,1730904642534,-212.34171603,0.00027397,2]
[341456598,1730904642544,-500.0,0.00027397,2]
[341456599,1730904642553,-170.79936228,0.00027397,2]
[341456600,1730904642562,-500.0,0.00027397,2]
[341456601,1730904642571,-500.0,0.00027397,2]
[341456602,1730904642581,-500.0,0.00027397,2]
[341456603,1730904642591,-500.0,0.00027397,2]
[341456604,1730904642604,-500.0,0.00027397,2]
[341456605,1730904642614,-500.0,0.00027397,2]
[341456606,1730904642623,-500.0,0.00027397,2]
[341456607,1730904642633,-410.94455582,0.00027397,2]
[341456608,1730904642643,-500.0,0.00027397,2]
[341456609,1730904642652,-500.0,0.00027397,2]
[341456610,1730904642661,-500.0,0.00027397,2]
[341456611,1730904642671,-500.0,0.00027397,2]
[341456612,1730904642682,-500.0,0.00027397,2]
[341456613,1730904642695,-500.0,0.00027397,2]
[341456614,1730904642704,-500.0,0.00027397,2]
[341456615,1730904642720,-500.0,0.00027397,2]
[341456616,1730904642733,-500.0,0.00027397,2]
[341456617,1730904642742,-500.0,0.00027397,2]
[341456618,1730904642752,-500.0,0.00027397,2]
[341456619,1730904642762,-500.0,0.00027397,2]
[341456620,1730904642773,-500.0,0.00027397,2]
[341456621,1730904642782,-508.3849619,0.00027397,2]
[341456622,1730904642793,-503.06219977,0.00027397,2]
[341456623,1730904642803,-505.82997173,0.00027397,2]
[341456624,1730904642813,-501.59705022,0.00027397,2]
[341456625,1730904642823,-500.0,0.00027397,2]
[341456626,1730904642832,-500.0,0.00027397,2]
[341456627,1730904642841,-500.0,0.00027397,2]
[341456628,1730904642851,-500.0,0.00027397,2]
[341456629,1730904642861,-500.0,0.00027397,2]
[341456630,1730904642870,-503.87017721,0.00027397,2]
[341456631,1730904642879,-500.0,0.00027397,2]
[341456632,1730904642888,-500.0,0.00027397,2]
[341456633,1730904642897,-500.0,0.00027397,2]
[341456634,1730904642907,-500.0,0.00027397,2]
[341456636,1730904642916,-500.0,0.00027397,2]
[341456637,1730904642926,-500.0,0.00027397,2]
[341456638,1730904642935,-500.0,0.00027397,2]
[341456639,1730904642947,-500.0,0.00027397,2]
[341456641,1730904642956,-500.0,0.00027397,2]
[341456642,1730904642967,-500.0,0.00027397,2]
[341456643,1730904642977,-501.33175575,0.00027397,2]
[341456644,1730904642987,-500.0,0.00027397,2]
[341456645,1730904642998,-500.0,0.00027397,2]
[341456646,1730904643007,-338.88306405,0.00027397,2]
[341456647,1730904643017,-500.0,0.00027397,2]
[341456648,1730904643028,-500.0,0.00027397,2]
[341456649,1730904643038,-503.95275377,0.00027397,2]
[341456650,1730904643047,-500.0,0.00027397,2]
[341456651,1730904643056,-500.0,0.00027397,2]
[341456652,1730904643066,-500.0,0.00027397,2]
[341456654,1730904643075,-500.0,0.00027397,2]
[341456656,1730904643084,-500.0,0.00027397,2]
[341456659,1730904643094,-504.88293397,0.00027397,2]
[341456663,1730904643103,-500.0,0.00027397,2]
[341456665,1730904643112,-500.0,0.00027397,2]
[341456667,1730904643121,-500.0,0.00027397,2]
[341456669,1730904643131,-500.0,0.00027397,2]
[341456671,1730904643140,-500.0,0.00027397,2]